[Event "Titled Tuesday Blitz October 11 Late 2022"]
[White "Naroditsky, Daniel"]
[Black "Skatchkov, Valery"]
[WhiteFideId "2026961"]
[BlackFideId "24195812"]
[WhiteElo "2628"]
[BlackElo "2199"]
[Result "1-0"]
[Round "06"]
[TimeControl "180+1"]
[Date "2022.10.11"]
[WhiteClock "0:00:34"]
[BlackClock "0:00:04"]

1. e4 {[%clk 0:03:00]}  e5 {[%clk 0:02:56]} 2. Nf3 {[%clk 0:03:01]}  d5 {[%clk 0:02:56]} 3. Nxe5 {[%clk 0:02:58]}  Bd6 {[%clk 0:02:54]} 4. d4 {[%clk 0:02:55]}  dxe4 {[%clk 0:02:51]} 5. Bc4 {[%clk 0:02:55]}  Bxe5 {[%clk 0:02:48]} 6. Qh5 {[%clk 0:02:56]}  Qe7 {[%clk 0:02:48]} 7. Qxe5 {[%clk 0:02:56]}  Qxe5 {[%clk 0:02:48]} 8. dxe5 {[%clk 0:02:57]}  Nc6 {[%clk 0:02:48]} 9. Bf4 {[%clk 0:02:54]}  Nge7 {[%clk 0:02:43]} 10. Nc3 {[%clk 0:02:35]}  Ng6 {[%clk 0:02:43]} 11. Bg3 {[%clk 0:02:35]}  Ncxe5 {[%clk 0:02:43]} 12. Bb3 {[%clk 0:02:33]}  Bg4 {[%clk 0:02:41]} 13. h3 {[%clk 0:02:26]}  Bh5 {[%clk 0:02:41]} 14. Nxe4 {[%clk 0:02:26]}  O-O-O {[%clk 0:02:40]} 15. O-O {[%clk 0:02:25]}  f6 {[%clk 0:02:31]} 16. Rfe1 {[%clk 0:02:18]}  Rhe8 {[%clk 0:02:27]} 17. Bh2 {[%clk 0:02:19]}  Nh4 {[%clk 0:02:22]} 18. Bg3 {[%clk 0:01:47]}  Nhf3+ {[%clk 0:02:15]} 19. gxf3 {[%clk 0:01:47]}  Nxf3+ {[%clk 0:02:16]} 20. Kf1 {[%clk 0:01:47]}  Rxe4 {[%clk 0:01:53]} 21. Rxe4 {[%clk 0:01:47]}  Nd2+ {[%clk 0:01:53]} 22. Kg2 {[%clk 0:01:48]}  Bf3+ {[%clk 0:01:52]} 23. Kg1 {[%clk 0:01:48]}  Nxb3 {[%clk 0:01:50]} 24. Re7 {[%clk 0:01:32]}  Nxa1 {[%clk 0:01:49]} 25. Rxc7+ {[%clk 0:01:33]}  Kb8 {[%clk 0:01:49]} 26. Rd7+ {[%clk 0:01:34]}  Kc8 {[%clk 0:01:49]} 27. Rc7+ {[%clk 0:01:34]}  Kb8 {[%clk 0:01:49]} 28. Rc3+ {[%clk 0:01:33]}  Ka8 {[%clk 0:01:50]} 29. Rxf3 {[%clk 0:01:33]}  Nxc2 {[%clk 0:01:50]} 30. Rc3 {[%clk 0:01:33]}  Nd4 {[%clk 0:01:48]} 31. Rc7 {[%clk 0:01:31]}  Nf5 {[%clk 0:01:38]} 32. Kg2 {[%clk 0:01:31]}  a6 {[%clk 0:01:30]} 33. Bf4 {[%clk 0:01:29]}  Rd3 {[%clk 0:01:11]} 34. Rc5 {[%clk 0:01:16]}  Nh4+ {[%clk 0:01:02]} 35. Kf1 {[%clk 0:01:15]}  b6 {[%clk 0:00:34]} 36. Rc8+ {[%clk 0:01:12]}  Kb7 {[%clk 0:00:33]} 37. Rc7+ {[%clk 0:01:13]}  Ka8 {[%clk 0:00:34]} 38. Rxg7 {[%clk 0:01:11]}  Ng6 {[%clk 0:00:22]} 39. Be3 {[%clk 0:01:09]}  Rd1+ {[%clk 0:00:23]} 40. Ke2 {[%clk 0:01:05]}  Rb1 {[%clk 0:00:22]} 41. Bd4 {[%clk 0:00:59]}  Nf4+ {[%clk 0:00:21]} 42. Kf3 {[%clk 0:00:58]}  Nxh3 {[%clk 0:00:16]} 43. Bxf6 {[%clk 0:00:58]}  h5 {[%clk 0:00:15]} 44. Kg3 {[%clk 0:00:50]}  Ng1 {[%clk 0:00:14]} 45. Re7 {[%clk 0:00:51]}  Ra1 {[%clk 0:00:07]} 46. a3 {[%clk 0:00:51]}  Rd1 {[%clk 0:00:06]} 47. Kg2 {[%clk 0:00:49]}  Rd6 {[%clk 0:00:04]} 48. Bg5 {[%clk 0:00:34]}  Rg6 {[%clk 0:00:04]} 49. f4 {[%clk 0:00:34]} 1-0


[Site "https://www.chess.com"]

[Event "Titled Tuesday Blitz October 11 Late 2022"]
[White "Noboa Silva, Kevin"]
[Black "Storey, Charles H"]
[WhiteFideId "3618471"]
[BlackFideId "406686"]
[WhiteElo "2178"]
[BlackElo "2252"]
[Result "1-0"]
[Round "06"]
[TimeControl "180+1"]
[Date "2022.10.12"]
[WhiteClock "0:01:42"]
[BlackClock "0:01:55"]

1. e4 {[%clk 0:03:00]}  g6 {[%clk 0:02:59]} 2. d4 {[%clk 0:03:00]}  Bg7 {[%clk 0:03:00]} 3. Nf3 {[%clk 0:03:00]}  c5 {[%clk 0:03:00]} 4. c3 {[%clk 0:03:00]}  cxd4 {[%clk 0:03:00]} 5. cxd4 {[%clk 0:03:01]}  d5 {[%clk 0:03:00]} 6. e5 {[%clk 0:03:02]}  Nc6 {[%clk 0:03:01]} 7. Bb5 {[%clk 0:03:01]}  Bg4 {[%clk 0:03:00]} 8. Bxc6+ {[%clk 0:02:58]}  bxc6 {[%clk 0:03:00]} 9. Nbd2 {[%clk 0:02:59]}  Bxf3 {[%clk 0:02:57]} 10. Nxf3 {[%clk 0:02:59]}  e6 {[%clk 0:02:57]} 11. O-O {[%clk 0:02:59]}  Ne7 {[%clk 0:02:56]} 12. Qa4 {[%clk 0:02:59]}  O-O {[%clk 0:02:56]} 13. b3 {[%clk 0:02:59]}  Nf5 {[%clk 0:02:40]} 14. Ba3 {[%clk 0:02:58]}  Re8 {[%clk 0:02:39]} 15. Rac1 {[%clk 0:02:56]}  Nh4 {[%clk 0:02:23]} 16. Nxh4 {[%clk 0:02:48]}  Qxh4 {[%clk 0:02:23]} 17. Rxc6 {[%clk 0:02:47]}  Bh6 {[%clk 0:02:18]} 18. Bc1 {[%clk 0:02:34]}  Bf8 {[%clk 0:02:07]} 19. Be3 {[%clk 0:02:28]}  h5 {[%clk 0:02:04]} 20. Rfc1 {[%clk 0:02:27]}  Qg4 {[%clk 0:02:02]} 21. Rc7 {[%clk 0:02:09]}  h4 {[%clk 0:01:56]} 22. h3 {[%clk 0:02:07]}  Qe2 {[%clk 0:01:56]} 23. Bg5 {[%clk 0:01:52]}  Qe4 {[%clk 0:01:56]} 24. Qd7 {[%clk 0:01:42]}  Qf5 {[%clk 0:01:55]} 25. Bf6 {[%clk 0:01:42]} 1-0


[Site "https://www.chess.com"]

[Event "Titled Tuesday Blitz October 11 Late 2022"]
[White "Nozdrachev, Leonid"]
[Black "Nasuta, Grzegorz"]
[WhiteFideId "24113433"]
[BlackFideId "1141686"]
[WhiteElo "2541"]
[BlackElo "2706"]
[Result "0-1"]
[Round "06"]
[TimeControl "180+1"]
[Date "2022.10.12"]
[WhiteClock "0:00:09"]
[BlackClock "0:00:17"]

1. d4 {[%clk 0:02:59]}  d5 {[%clk 0:02:59]} 2. Bf4 {[%clk 0:02:58]}  c5 {[%clk 0:02:59]} 3. e3 {[%clk 0:02:57]}  Nc6 {[%clk 0:02:59]} 4. Nf3 {[%clk 0:02:57]}  Nf6 {[%clk 0:02:59]} 5. Nc3 {[%clk 0:02:56]}  cxd4 {[%clk 0:02:54]} 6. exd4 {[%clk 0:02:57]}  a6 {[%clk 0:02:53]} 7. Bd3 {[%clk 0:02:56]}  Bg4 {[%clk 0:02:53]} 8. O-O {[%clk 0:02:48]}  Nxd4 {[%clk 0:02:45]} 9. Bxa6 {[%clk 0:02:23]}  Bxf3 {[%clk 0:02:32]} 10. Qxd4 {[%clk 0:02:20]}  Rxa6 {[%clk 0:02:27]} 11. Nb5 {[%clk 0:02:13]}  Rc6 {[%clk 0:02:22]} 12. gxf3 {[%clk 0:02:07]}  e6 {[%clk 0:02:22]} 13. Qe5 {[%clk 0:01:55]}  Be7 {[%clk 0:02:21]} 14. Nc7+ {[%clk 0:01:52]}  Kf8 {[%clk 0:02:21]} 15. Nb5 {[%clk 0:01:52]}  Nd7 {[%clk 0:01:53]} 16. Qe2 {[%clk 0:01:44]}  Bf6 {[%clk 0:01:52]} 17. c3 {[%clk 0:01:38]}  g6 {[%clk 0:01:36]} 18. Bh6+ {[%clk 0:01:35]}  Bg7 {[%clk 0:01:36]} 19. Bxg7+ {[%clk 0:01:31]}  Kxg7 {[%clk 0:01:37]} 20. Nd4 {[%clk 0:01:29]}  Rc4 {[%clk 0:01:29]} 21. f4 {[%clk 0:01:27]}  Qf6 {[%clk 0:01:27]} 22. Rfe1 {[%clk 0:01:14]}  Qxf4 {[%clk 0:01:18]} 23. b3 {[%clk 0:01:07]}  Rxc3 {[%clk 0:01:08]} 24. Rad1 {[%clk 0:00:59]}  Rh3 {[%clk 0:01:00]} 25. f3 {[%clk 0:00:54]}  e5 {[%clk 0:00:50]} 26. Nb5 {[%clk 0:00:50]}  d4 {[%clk 0:00:38]} 27. Nd6 {[%clk 0:00:44]}  Rxf3 {[%clk 0:00:24]} 28. Rf1 {[%clk 0:00:39]}  Qg4+ {[%clk 0:00:19]} 29. Kh1 {[%clk 0:00:35]}  Rxf1+ {[%clk 0:00:19]} 30. Qxf1 {[%clk 0:00:35]}  Qe6 {[%clk 0:00:19]} 31. Ne4 {[%clk 0:00:29]}  h6 {[%clk 0:00:18]} 32. Qg2 {[%clk 0:00:27]}  Rc8 {[%clk 0:00:17]} 33. Rf1 {[%clk 0:00:26]}  f5 {[%clk 0:00:17]} 34. Ng3 {[%clk 0:00:26]}  Kh7 {[%clk 0:00:11]} 35. Qxb7 {[%clk 0:00:20]}  Qc6+ {[%clk 0:00:11]} 36. Qxc6 {[%clk 0:00:20]}  Rxc6 {[%clk 0:00:12]} 37. a4 {[%clk 0:00:19]}  d3 {[%clk 0:00:12]} 38. b4 {[%clk 0:00:19]}  d2 {[%clk 0:00:12]} 39. Ne2 {[%clk 0:00:10]}  e4 {[%clk 0:00:10]} 40. b5 {[%clk 0:00:09]}  Rc4 {[%clk 0:00:07]} 41. a5 {[%clk 0:00:09]}  Rb4 {[%clk 0:00:06]} 42. Nc3 {[%clk 0:00:08]}  e3 {[%clk 0:00:04]} 43. a6 {[%clk 0:00:06]}  Rxb5 {[%clk 0:00:04]} 44. Nxb5 {[%clk 0:00:03]}  e2 {[%clk 0:00:05]} 45. Rg1 {[%clk 0:00:02]}  d1=Q {[%clk 0:00:05]} 46. a7 {[%clk 0:00:02]}  Qxg1+ {[%clk 0:00:05]} 47. Kxg1 {[%clk 0:00:03]}  e1=Q+ {[%clk 0:00:06]} 48. Kg2 {[%clk 0:00:04]}  Qe2+ {[%clk 0:00:06]} 49. Kg3 {[%clk 0:00:03]}  Nb6 {[%clk 0:00:07]} 50. Nc7 {[%clk 0:00:03]}  Qd3+ {[%clk 0:00:07]} 51. Kg2 {[%clk 0:00:04]}  Qc2+ {[%clk 0:00:07]} 52. Kg1 {[%clk 0:00:03]}  Qxc7 {[%clk 0:00:08]} 53. a8=Q {[%clk 0:00:02]}  Nxa8 {[%clk 0:00:09]} 54. h4 {[%clk 0:00:02]}  Qg3+ {[%clk 0:00:09]} 55. Kh1 {[%clk 0:00:02]}  Qxh4+ {[%clk 0:00:10]} 56. Kg1 {[%clk 0:00:03]}  Nc7 {[%clk 0:00:10]} 57. Kg2 {[%clk 0:00:03]}  Ne6 {[%clk 0:00:11]} 58. Kf3 {[%clk 0:00:04]}  Ng7 {[%clk 0:00:12]} 59. Kg2 {[%clk 0:00:04]}  Ne8 {[%clk 0:00:13]} 60. Kf3 {[%clk 0:00:05]}  Nf6 {[%clk 0:00:13]} 61. Kg2 {[%clk 0:00:06]}  Kg7 {[%clk 0:00:14]} 62. Kf3 {[%clk 0:00:07]}  Kf7 {[%clk 0:00:15]} 63. Kg2 {[%clk 0:00:08]}  Ke6 {[%clk 0:00:16]} 64. Kf3 {[%clk 0:00:09]}  Ke5 {[%clk 0:00:17]} 65. Kg2 {[%clk 0:00:09]}  Kf4 {[%clk 0:00:17]} 0-1


[Site "https://www.chess.com"]

[Event "Titled Tuesday Blitz October 11 Late 2022"]
[White "O`Gorman, Tom"]
[Black "Sai Krishna G V"]
[WhiteFideId "2508249"]
[BlackFideId "5028280"]
[WhiteElo "2546"]
[BlackElo "2713"]
[Result "1-0"]
[Round "06"]
[TimeControl "180+1"]
[Date "2022.10.12"]
[WhiteClock "0:01:03"]
[BlackClock "0:00:57"]

1. e4 {[%clk 0:03:00]}  g6 {[%clk 0:03:00]} 2. d4 {[%clk 0:03:00]}  Bg7 {[%clk 0:03:01]} 3. Nc3 {[%clk 0:03:00]}  c5 {[%clk 0:03:02]} 4. dxc5 {[%clk 0:02:59]}  Qa5 {[%clk 0:02:59]} 5. Bd2 {[%clk 0:02:59]}  Qxc5 {[%clk 0:02:59]} 6. Nd5 {[%clk 0:02:59]}  Nf6 {[%clk 0:03:00]} 7. Bb4 {[%clk 0:02:58]}  Qc6 {[%clk 0:03:00]} 8. Bb5 {[%clk 0:02:58]}  Nxd5 {[%clk 0:03:01]} 9. Bxc6 {[%clk 0:02:52]}  Nxb4 {[%clk 0:03:01]} 10. Ba4 {[%clk 0:02:49]}  Bxb2 {[%clk 0:03:01]} 11. Rb1 {[%clk 0:02:48]}  Bc3+ {[%clk 0:03:01]} 12. Kf1 {[%clk 0:02:48]}  N8c6 {[%clk 0:03:01]} 13. Ne2 {[%clk 0:02:47]}  Bg7 {[%clk 0:03:00]} 14. a3 {[%clk 0:02:41]}  Na6 {[%clk 0:02:59]} 15. h4 {[%clk 0:02:40]}  h5 {[%clk 0:02:57]} 16. Qd5 {[%clk 0:02:32]}  Nc7 {[%clk 0:02:48]} 17. Qd2 {[%clk 0:02:29]}  Ne6 {[%clk 0:02:45]} 18. Rh3 {[%clk 0:02:25]}  Nc5 {[%clk 0:02:42]} 19. Bb5 {[%clk 0:02:15]}  Nxe4 {[%clk 0:02:38]} 20. Qf4 {[%clk 0:02:11]}  d5 {[%clk 0:02:17]} 21. Rd3 {[%clk 0:01:58]}  e6 {[%clk 0:02:15]} 22. f3 {[%clk 0:01:49]}  Nc5 {[%clk 0:02:03]} 23. Bxc6+ {[%clk 0:01:32]}  bxc6 {[%clk 0:01:58]} 24. Qd6 {[%clk 0:01:32]}  Nxd3 {[%clk 0:01:52]} 25. Qxc6+ {[%clk 0:01:32]}  Bd7 {[%clk 0:01:20]} 26. Qxa8+ {[%clk 0:01:30]}  Ke7 {[%clk 0:01:21]} 27. Qxa7 {[%clk 0:01:24]}  Ne5 {[%clk 0:01:19]} 28. Rb7 {[%clk 0:01:22]}  Rd8 {[%clk 0:01:19]} 29. a4 {[%clk 0:01:17]}  Nc6 {[%clk 0:01:15]} 30. Qb6 {[%clk 0:01:13]}  Kd6 {[%clk 0:01:13]} 31. Qc7+ {[%clk 0:01:11]}  Kc5 {[%clk 0:01:13]} 32. Rb5+ {[%clk 0:01:10]}  Kc4 {[%clk 0:01:12]} 33. Rb6 {[%clk 0:01:10]}  Kc5 {[%clk 0:01:09]} 34. Rxc6+ {[%clk 0:01:09]}  Bxc6 {[%clk 0:01:09]} 35. Qxd8 {[%clk 0:01:10]}  Bxa4 {[%clk 0:01:07]} 36. Qa5+ {[%clk 0:01:09]}  Bb5 {[%clk 0:01:07]} 37. Qc7+ {[%clk 0:01:07]}  Kb4 {[%clk 0:01:02]} 38. Qxf7 {[%clk 0:01:06]}  Bb2 {[%clk 0:00:58]} 39. Qxe6 {[%clk 0:01:06]}  d4 {[%clk 0:00:57]} 40. Qxg6 {[%clk 0:01:05]}  Ba4 {[%clk 0:00:58]} 41. Qd3 {[%clk 0:01:02]}  Bb5 {[%clk 0:00:57]} 42. Qb3+ {[%clk 0:01:02]}  Kc5 {[%clk 0:00:57]} 43. Qxb2 {[%clk 0:01:03]} 1-0


[Site "https://www.chess.com"]

[Event "Titled Tuesday Blitz October 11 Late 2022"]
[White "Onslow, Alfie"]
[Black "Remolar Gallen, Jose"]
[WhiteFideId "436976"]
[BlackFideId "2215187"]
[WhiteElo "2015"]
[BlackElo "2214"]
[Result "0-1"]
[Round "06"]
[TimeControl "180+1"]
[Date "2022.10.12"]
[WhiteClock "0:00:03"]
[BlackClock "0:00:15"]

1. e4 {[%clk 0:02:56]}  c5 {[%clk 0:02:57]} 2. Nc3 {[%clk 0:02:46]}  d6 {[%clk 0:02:54]} 3. d4 {[%clk 0:02:46]}  cxd4 {[%clk 0:02:53]} 4. Qxd4 {[%clk 0:02:47]}  Nc6 {[%clk 0:02:52]} 5. Qd2 {[%clk 0:02:46]}  g6 {[%clk 0:02:53]} 6. b3 {[%clk 0:02:46]}  Bh6 {[%clk 0:02:53]} 7. f4 {[%clk 0:02:46]}  Nf6 {[%clk 0:02:53]} 8. Bb2 {[%clk 0:02:46]}  e5 {[%clk 0:02:53]} 9. g3 {[%clk 0:02:44]}  O-O {[%clk 0:02:53]} 10. O-O-O {[%clk 0:02:43]}  Nd4 {[%clk 0:02:50]} 11. Nge2 {[%clk 0:02:11]}  Bg4 {[%clk 0:02:48]} 12. Kb1 {[%clk 0:01:51]}  Re8 {[%clk 0:02:33]} 13. Bg2 {[%clk 0:01:25]}  Rc8 {[%clk 0:02:22]} 14. h3 {[%clk 0:01:23]}  Rxc3 {[%clk 0:02:06]} 15. Nxc3 {[%clk 0:01:17]}  Bxd1 {[%clk 0:02:05]} 16. Rxd1 {[%clk 0:01:18]}  Nh5 {[%clk 0:01:57]} 17. Qf2 {[%clk 0:01:05]}  Qa5 {[%clk 0:01:34]} 18. Nd5 {[%clk 0:00:59]}  Bg7 {[%clk 0:01:29]} 19. f5 {[%clk 0:00:51]}  Qd8 {[%clk 0:01:03]} 20. g4 {[%clk 0:00:25]}  Nf6 {[%clk 0:01:01]} 21. Ne3 {[%clk 0:00:19]}  Nd7 {[%clk 0:00:47]} 22. h4 {[%clk 0:00:15]}  g5 {[%clk 0:00:35]} 23. hxg5 {[%clk 0:00:11]}  Qxg5 {[%clk 0:00:34]} 24. Rh1 {[%clk 0:00:11]}  Qf4 {[%clk 0:00:29]} 25. Qh4 {[%clk 0:00:05]}  Qxe3 {[%clk 0:00:26]} 26. Qxh7+ {[%clk 0:00:05]}  Kf8 {[%clk 0:00:26]} 27. Bxd4 {[%clk 0:00:05]}  exd4 {[%clk 0:00:22]} 28. g5 {[%clk 0:00:04]}  Qxg5 {[%clk 0:00:17]} 29. Rh5 {[%clk 0:00:03]}  Qxg2 {[%clk 0:00:15]} 0-1


[Site "https://www.chess.com"]

[Event "Titled Tuesday Blitz October 11 Late 2022"]
[White "Osmonbekov, Talaibek"]
[Black "Tan, Ralph"]
[WhiteFideId "2017253"]
[BlackFideId "30966590"]
[WhiteElo "2135"]
[BlackElo "2059"]
[Result "0-1"]
[Round "06"]
[TimeControl "180+1"]
[Date "2022.10.12"]
[WhiteClock "0:00:51"]
[BlackClock "0:00:34"]

1. d4 {[%clk 0:03:00]}  Nf6 {[%clk 0:02:59]} 2. Bf4 {[%clk 0:03:00]}  g6 {[%clk 0:02:59]} 3. Nc3 {[%clk 0:03:01]}  d5 {[%clk 0:02:53]} 4. e3 {[%clk 0:03:01]}  Bg7 {[%clk 0:02:53]} 5. h4 {[%clk 0:03:01]}  c6 {[%clk 0:02:51]} 6. Nf3 {[%clk 0:03:00]}  O-O {[%clk 0:02:49]} 7. Ne5 {[%clk 0:02:59]}  Nbd7 {[%clk 0:02:46]} 8. h5 {[%clk 0:02:59]}  Nxe5 {[%clk 0:02:42]} 9. dxe5 {[%clk 0:02:58]}  Ne4 {[%clk 0:02:31]} 10. Nxe4 {[%clk 0:02:47]}  dxe4 {[%clk 0:02:30]} 11. Qxd8 {[%clk 0:02:47]}  Rxd8 {[%clk 0:02:31]} 12. h6 {[%clk 0:02:43]}  Bh8 {[%clk 0:02:31]} 13. Bc4 {[%clk 0:02:43]}  a5 {[%clk 0:02:25]} 14. a4 {[%clk 0:02:42]}  Bf5 {[%clk 0:02:08]} 15. Ke2 {[%clk 0:02:41]}  Kf8 {[%clk 0:01:59]} 16. Rad1 {[%clk 0:02:37]}  f6 {[%clk 0:01:43]} 17. e6 {[%clk 0:02:32]}  b5 {[%clk 0:01:36]} 18. axb5 {[%clk 0:02:28]}  cxb5 {[%clk 0:01:35]} 19. Bxb5 {[%clk 0:02:28]}  Bxe6 {[%clk 0:01:35]} 20. Bc6 {[%clk 0:02:23]}  Rac8 {[%clk 0:01:33]} 21. Rxd8+ {[%clk 0:02:15]}  Rxd8 {[%clk 0:01:33]} 22. Bxe4 {[%clk 0:02:11]}  f5 {[%clk 0:01:32]} 23. Bd3 {[%clk 0:02:11]}  Bxb2 {[%clk 0:01:31]} 24. Rb1 {[%clk 0:02:07]}  Bc3 {[%clk 0:01:30]} 25. Rb7 {[%clk 0:01:52]}  Rd7 {[%clk 0:00:55]} 26. Rb8+ {[%clk 0:01:41]}  Kf7 {[%clk 0:00:54]} 27. Ra8 {[%clk 0:01:42]}  Bd5 {[%clk 0:00:52]} 28. Ra6 {[%clk 0:01:31]}  e5 {[%clk 0:00:45]} 29. Bg5 {[%clk 0:01:18]}  e4 {[%clk 0:00:44]} 30. Bb5 {[%clk 0:01:15]}  Rb7 {[%clk 0:00:44]} 31. Rf6+ {[%clk 0:01:12]}  Bxf6 {[%clk 0:00:43]} 32. Bxf6 {[%clk 0:01:06]}  Kxf6 {[%clk 0:00:44]} 33. c4 {[%clk 0:01:06]}  Bg8 {[%clk 0:00:41]} 34. Kd2 {[%clk 0:01:06]}  a4 {[%clk 0:00:39]} 35. Bxa4 {[%clk 0:01:05]}  Bxc4 {[%clk 0:00:38]} 36. Kc3 {[%clk 0:01:05]}  Bd3 {[%clk 0:00:39]} 37. f3 {[%clk 0:01:02]}  Rc7+ {[%clk 0:00:38]} 38. Kd2 {[%clk 0:00:59]}  exf3 {[%clk 0:00:37]} 39. gxf3 {[%clk 0:00:59]}  Bc4 {[%clk 0:00:37]} 40. e4 {[%clk 0:00:57]}  fxe4 {[%clk 0:00:37]} 41. fxe4 {[%clk 0:00:58]}  Ke5 {[%clk 0:00:37]} 42. Ke3 {[%clk 0:00:58]}  Be6 {[%clk 0:00:37]} 43. Kd3 {[%clk 0:00:55]}  Ra7 {[%clk 0:00:33]} 44. Be8 {[%clk 0:00:52]}  Ra3+ {[%clk 0:00:33]} 45. Kd2 {[%clk 0:00:51]}  Kxe4 {[%clk 0:00:32]} 46. Bxg6+ {[%clk 0:00:51]}  hxg6 {[%clk 0:00:33]} 47. h7 {[%clk 0:00:51]}  Rh3 {[%clk 0:00:34]} 48. h8=Q {[%clk 0:00:51]}  Rxh8 {[%clk 0:00:34]} 0-1


[Site "https://www.chess.com"]

[Event "Titled Tuesday Blitz October 11 Late 2022"]
[White "Pakleza, Zbigniew"]
[Black "Jacobson, Brandon"]
[WhiteFideId "1119290"]
[BlackFideId "30901561"]
[WhiteElo "2411"]
[BlackElo "2451"]
[Result "1-0"]
[Round "06"]
[TimeControl "180+1"]
[Date "2022.10.11"]
[WhiteClock "0:00:11"]
[BlackClock "0:00:01"]

1. d4 {[%clk 0:03:00]}  Nf6 {[%clk 0:03:00]} 2. Nf3 {[%clk 0:03:00]}  g6 {[%clk 0:03:00]} 3. Bf4 {[%clk 0:03:01]}  Bg7 {[%clk 0:03:00]} 4. e3 {[%clk 0:03:02]}  O-O {[%clk 0:03:01]} 5. Be2 {[%clk 0:03:02]}  c5 {[%clk 0:03:01]} 6. c3 {[%clk 0:03:02]}  Qb6 {[%clk 0:02:56]} 7. Qb3 {[%clk 0:03:02]}  d6 {[%clk 0:02:56]} 8. Nbd2 {[%clk 0:03:01]}  Be6 {[%clk 0:02:55]} 9. Bc4 {[%clk 0:03:01]}  Bxc4 {[%clk 0:02:45]} 10. Nxc4 {[%clk 0:03:02]}  Qc6 {[%clk 0:02:44]} 11. a4 {[%clk 0:02:35]}  Nbd7 {[%clk 0:02:43]} 12. O-O {[%clk 0:02:31]}  Rfc8 {[%clk 0:02:41]} 13. Nfd2 {[%clk 0:02:17]}  b6 {[%clk 0:02:08]} 14. h3 {[%clk 0:02:15]}  a6 {[%clk 0:02:00]} 15. Rfd1 {[%clk 0:01:54]}  Nd5 {[%clk 0:01:46]} 16. Bg3 {[%clk 0:01:51]}  Rcb8 {[%clk 0:01:31]} 17. e4 {[%clk 0:01:42]}  N5f6 {[%clk 0:01:24]} 18. e5 {[%clk 0:01:38]}  Nh5 {[%clk 0:01:11]} 19. Bh2 {[%clk 0:01:38]}  b5 {[%clk 0:01:11]} 20. axb5 {[%clk 0:01:35]}  axb5 {[%clk 0:01:11]} 21. Rxa8 {[%clk 0:01:11]}  Rxa8 {[%clk 0:01:07]} 22. Na3 {[%clk 0:01:11]}  dxe5 {[%clk 0:00:50]} 23. dxe5 {[%clk 0:01:03]}  Bxe5 {[%clk 0:00:43]} 24. Qxb5 {[%clk 0:01:02]}  Bxh2+ {[%clk 0:00:25]} 25. Kxh2 {[%clk 0:01:03]}  Qd6+ {[%clk 0:00:23]} 26. g3 {[%clk 0:00:47]}  Ne5 {[%clk 0:00:19]} 27. Qe2 {[%clk 0:00:47]}  Qb8 {[%clk 0:00:07]} 28. Ndc4 {[%clk 0:00:36]}  Nxc4 {[%clk 0:00:06]} 29. Nxc4 {[%clk 0:00:37]}  e6 {[%clk 0:00:06]} 30. Rd7 {[%clk 0:00:25]}  Nf6 {[%clk 0:00:06]} 31. Rd2 {[%clk 0:00:18]}  Nd5 {[%clk 0:00:06]} 32. Qf3 {[%clk 0:00:16]}  Ra2 {[%clk 0:00:02]} 33. h4 {[%clk 0:00:15]}  Qb3 {[%clk 0:00:01]} 34. Ne5 {[%clk 0:00:11]} 1-0


[Site "https://www.chess.com"]

[Event "Titled Tuesday Blitz October 11 Late 2022"]
[White "Prieto Aranguren, Alain"]
[Black "Krzywda, Andrzej"]
[WhiteFideId "2268906"]
[BlackFideId "1114565"]
[WhiteElo "2209"]
[BlackElo "2149"]
[Result "1/2-1/2"]
[Round "06"]
[TimeControl "180+1"]
[Date "2022.10.12"]
[WhiteClock "0:00:08"]
[BlackClock "0:00:06"]

1. e4 {[%clk 0:02:56]}  c5 {[%clk 0:03:00]} 2. Nf3 {[%clk 0:02:55]}  Nc6 {[%clk 0:03:00]} 3. c3 {[%clk 0:02:54]}  Nf6 {[%clk 0:02:59]} 4. Bc4 {[%clk 0:02:49]}  d5 {[%clk 0:02:56]} 5. exd5 {[%clk 0:02:49]}  Nxd5 {[%clk 0:02:57]} 6. O-O {[%clk 0:02:29]}  Bg4 {[%clk 0:02:57]} 7. Qb3 {[%clk 0:02:21]}  Bxf3 {[%clk 0:02:48]} 8. gxf3 {[%clk 0:02:14]}  e6 {[%clk 0:02:47]} 9. Qxb7 {[%clk 0:02:12]}  Rc8 {[%clk 0:02:42]} 10. Bb5 {[%clk 0:02:09]}  Qc7 {[%clk 0:02:09]} 11. Qxc7 {[%clk 0:02:07]}  Rxc7 {[%clk 0:02:09]} 12. Na3 {[%clk 0:02:06]}  Be7 {[%clk 0:02:03]} 13. Nc4 {[%clk 0:02:01]}  O-O {[%clk 0:02:03]} 14. d3 {[%clk 0:01:41]}  Bf6 {[%clk 0:01:53]} 15. Bxc6 {[%clk 0:01:23]}  Rxc6 {[%clk 0:01:53]} 16. Be3 {[%clk 0:01:12]}  Rd8 {[%clk 0:01:47]} 17. Rfd1 {[%clk 0:01:08]}  g5 {[%clk 0:01:43]} 18. Kf1 {[%clk 0:01:00]}  Kg7 {[%clk 0:01:42]} 19. Ke2 {[%clk 0:01:00]}  h6 {[%clk 0:01:41]} 20. Rd2 {[%clk 0:00:58]}  Nb6 {[%clk 0:01:32]} 21. Rad1 {[%clk 0:00:54]}  Na4 {[%clk 0:01:29]} 22. h3 {[%clk 0:00:48]}  Rb8 {[%clk 0:01:28]} 23. f4 {[%clk 0:00:42]}  Nb6 {[%clk 0:01:22]} 24. fxg5 {[%clk 0:00:40]}  hxg5 {[%clk 0:01:23]} 25. Rg1 {[%clk 0:00:38]}  Kg6 {[%clk 0:01:06]} 26. h4 {[%clk 0:00:37]}  g4 {[%clk 0:01:02]} 27. Rxg4+ {[%clk 0:00:37]}  Kh5 {[%clk 0:01:02]} 28. Rf4 {[%clk 0:00:27]}  Nd5 {[%clk 0:00:59]} 29. Rf3 {[%clk 0:00:21]}  Rg8 {[%clk 0:00:44]} 30. Rd1 {[%clk 0:00:19]}  Rg4 {[%clk 0:00:41]} 31. Kd2 {[%clk 0:00:10]}  Rc8 {[%clk 0:00:37]} 32. Kc2 {[%clk 0:00:10]}  Rg2 {[%clk 0:00:37]} 33. Kb1 {[%clk 0:00:09]}  Rc7 {[%clk 0:00:36]} 34. Nd2 {[%clk 0:00:08]}  Rb7 {[%clk 0:00:35]} 35. Ne4 {[%clk 0:00:07]}  Nxc3+ {[%clk 0:00:31]} 36. Nxc3 {[%clk 0:00:07]}  Bxc3 {[%clk 0:00:31]} 37. b3 {[%clk 0:00:04]}  f5 {[%clk 0:00:30]} 38. Rf4 {[%clk 0:00:03]}  Bb4 {[%clk 0:00:27]} 39. Rc4 {[%clk 0:00:03]}  Rb5 {[%clk 0:00:22]} 40. d4 {[%clk 0:00:03]}  cxd4 {[%clk 0:00:20]} 41. Rcxd4 {[%clk 0:00:04]}  Bc3 {[%clk 0:00:19]} 42. Rd7 {[%clk 0:00:04]}  a5 {[%clk 0:00:16]} 43. Rh7+ {[%clk 0:00:04]}  Kg6 {[%clk 0:00:14]} 44. Rh6+ {[%clk 0:00:03]}  Kg7 {[%clk 0:00:13]} 45. Rd7+ {[%clk 0:00:04]}  Kg8 {[%clk 0:00:14]} 46. Rxe6 {[%clk 0:00:03]}  Rb8 {[%clk 0:00:08]} 47. Ree7 {[%clk 0:00:02]}  a4 {[%clk 0:00:07]} 48. h5 {[%clk 0:00:03]}  axb3 {[%clk 0:00:07]} 49. axb3 {[%clk 0:00:03]}  Bf6 {[%clk 0:00:07]} 50. Rf7 {[%clk 0:00:03]}  Be5 {[%clk 0:00:07]} 51. h6 {[%clk 0:00:03]}  Rxb3+ {[%clk 0:00:06]} 52. Kc2 {[%clk 0:00:03]}  Rc3+ {[%clk 0:00:05]} 53. Kd2 {[%clk 0:00:02]}  Rc8 {[%clk 0:00:03]} 54. h7+ {[%clk 0:00:03]}  Kh8 {[%clk 0:00:03]} 55. Bd4 {[%clk 0:00:03]}  Bxd4 {[%clk 0:00:02]} 56. Rxd4 {[%clk 0:00:04]}  Rxf2+ {[%clk 0:00:03]} 57. Ke3 {[%clk 0:00:04]}  Rh2 {[%clk 0:00:03]} 58. Kf4 {[%clk 0:00:05]}  Rxh7 {[%clk 0:00:02]} 59. Rxh7+ {[%clk 0:00:05]}  Kxh7 {[%clk 0:00:03]} 60. Kxf5 {[%clk 0:00:06]}  Kg7 {[%clk 0:00:04]} 61. Rd7+ {[%clk 0:00:06]}  Kf8 {[%clk 0:00:04]} 62. Rh7 {[%clk 0:00:05]}  Rc5+ {[%clk 0:00:04]} 63. Ke6 {[%clk 0:00:05]}  Rc6+ {[%clk 0:00:05]} 64. Ke5 {[%clk 0:00:06]}  Rc5+ {[%clk 0:00:05]} 65. Kf6 {[%clk 0:00:06]}  Rc6+ {[%clk 0:00:05]} 66. Ke5 {[%clk 0:00:06]}  Rc5+ {[%clk 0:00:05]} 67. Kd6 {[%clk 0:00:07]}  Rc1 {[%clk 0:00:05]} 68. Ke6 {[%clk 0:00:07]}  Re1+ {[%clk 0:00:05]} 69. Kf6 {[%clk 0:00:07]}  Rf1+ {[%clk 0:00:05]} 70. Ke6 {[%clk 0:00:07]}  Re1+ {[%clk 0:00:05]} 71. Kf6 {[%clk 0:00:07]}  Rf1+ {[%clk 0:00:06]} 72. Ke6 {[%clk 0:00:08]}  Re1+ {[%clk 0:00:06]} 1/2-1/2


[Site "https://www.chess.com"]